Cogmind - Beta 14 @@@ ROGUE MODE // 2024.12.08 @ 22:24:16 Player: droogie Result: Self-destructed Performance ------------- Evolutions (1) 500 Regions Visited (3) 600 Robots Destroyed (1) 5 Value Destroyed (53) 53 Prototype IDs (1) 20 Alien Tech Used (0) 0 Bonus (0) 0 TOTAL SCORE: 1178 Bonus ------- None Cogmind --------- Core Integrity 96/400 Matter 268/300 Energy 280/280 System Corruption 1% Temperature Cool (0) Movement Core (150) Ox2 Location -9/Materials Parts ------- > --- POWER (1) -------- Heavy Ion Engine > --- PROPULSION (4) --- (None) > --- UTILITY (2) ------ (None) > --- WEAPON (2) ------- (None) > --- INVENTORY (5) ---- Light Treads VSS Leg Experimental Sensor Array Small Laser Mining Laser Peak State ------------ > --- POWER ------------ (None) > --- PROPULSION ------- VSS Leg VSS Leg VSS Leg Flexi-carbon Leg > --- UTILITY ---------- Small Storage Unit Sensor Array > --- WEAPON ----------- (None) > --- INVENTORY -------- Ion Engine Light Treads Light Treads Aluminum Leg Experimental Sensor Array Small Laser Mining Laser [Rating: 17] Favorites ----------- Power Ion Engine Engine Ion Engine Propulsion Aluminum Leg Leg Aluminum Leg Utility Small Storage Unit Device Sensor Array Storage Small Storage Unit Weapon Small Laser Energy Gun Small Laser Special Weapon Mining Laser Build | -11 -10 -10 -9 ------- Run | Yrd Mat Min Mat Slots Evolved 2 | . . . 2 Power . | . . . . Propulsion 2 | . . . 2 Utility . | . . . . Weapon . | . . . . Parts Attached 18 | 6 1 5 6 Power 3 | 1 . 1 1 Engine 3 | 1 . 1 1 Core . | . . . . Reactor . | . . . . Propulsion 10 | 2 . 4 4 Treads . | . . . . Leg 10 | 2 . 4 4 Wheel . | . . . . Hover . | . . . . Flight . | . . . . Utility 2 | 1 1 . . Device 1 | . 1 . . Storage 1 | 1 . . . Processor . | . . . . Hackware . | . . . . Protection . | . . . . Artifact . | . . . . Weapon 3 | 2 . . 1 Energy Gun 2 | 2 . . . Energy Cannon . | . . . . Ballistic Gun . | . . . . Ballistic Cannon . | . . . . Launcher . | . . . . Special Weapon 1 | . . . 1 Impact Weapon . | . . . . Slashing Weapon . | . . . . Piercing Weapon . | . . . . Special Melee Weapon . | . . . . Unidentified Prototypes 1 | . . . 1 Corrupted Parts 1 | . . 1 . System Corruption 4 | . . 4 . Parts Lost 9 | . . 4 5 Power 2 | . . 1 1 Propulsion 3 | . . 2 1 Utility 1 | . . . 1 Weapon 3 | . . 1 2 Highest Loss Streak 4 | . . 4 3 To Critical Strikes . | . . . . Average Slot Usage (%) 67 | . 98 64 51 Engine 5 | . 14 3 6 Leg 19 | . 28 17 16 Device 12 | . 12 14 8 Storage 12 | . 14 14 8 Energy Gun 15 | . 28 14 7 Special Weapon 1 | . . . 4 Peak Build Rating 17 | 6 7 11 17 Average Rating 8 | 4 6 8 9 On Entrance 6 | . 6 7 11 Naked Turns 15 | . . . 15 Heaviest Build 14 | 13 14 12 11 Greatest Support 56 | 20 20 30 56 Greatest Overweight (x) 2 | . . 1 2 Average Overweight (x) . | . . . . Largest Inventory Capacity 8 | 8 8 8 8 Average Capacity 7 | 6 8 8 7 Most Carried 8 | 4 5 8 8 Average Carried 6 | 2 4 7 6 Final Capacity 8 | 8 8 8 5 Final Carried 8 | 4 5 8 5 Class Distribution -------------------- 100% | Mutant Dominant Class ---------------- Mutant | -10/Materials Mutant | -10/Mines Mutant | -9/Materials Resources | -11 -10 -10 -9 ----------- Run | Yrd Mat Min Mat Matter Collected 304 | 250 . 54 . Remotely . | . . . . Salvage Created 31 | . . 31 . Parts . | . . . . Haulers Intercepted . | . . . . Recyclers Shooed . | . . . . Parts Field Recycled . | . . . . Retrieved Matter . | . . . . Parts Self-Destructed . | . . . . Prevented . | . . . . Kills | -11 -10 -10 -9 ------- Run | Yrd Mat Min Mat Combat Hostiles Destroyed 2 | . . 2 . Guns 2 | . . 2 . Classes Destroyed 2 | . . 2 . Demolisher 1 | . . 1 . Assembled 1 | . . 1 . Best Kill Streak 1 | . . 1 . Combat Bots Only 1 | . . 1 . Max Kills in Single Turn 1 | . . 1 . Gunslinging . | . . . . Exploded . | . . . . Melee . | . . . . Uniques/NPCs Destroyed . | . . . . Combat | -11 -10 -10 -9 -------- Run | Yrd Mat Min Mat Hostile Shots Fired 169 | . 50 16 103 Missed 76 | . 26 1 49 Damage Taken 1366 | . 314 329 723 Core 414 | . 55 55 304 Absorbed by Shields . | . . . . Core Remaining (%) 78 | 100 . 56 . Volleys Fired 10 | . 1 9 . Largest 2 | . 2 2 . Hottest 90 | . 90 90 . Shots Fired 14 | . 2 12 . Gun 14 | . 2 12 . Cannon . | . . . . Launcher . | . . . . Special . | . . . . Kinetic . | . . . . Thermal 14 | . 2 12 . Explosive . | . . . . Electromagnetic . | . . . . Robot Hit Streak 4 | . 1 4 . Robot Miss Streak 3 | . 1 3 . Penetration Max . | . . . . Secondary Targets . | . . . . Shots Hit Robots 9 | . 1 8 . Core Hits 7 | . . 6 1 Critical Kills . | . . . . Critical Parts Destroyed . | . . . . Critical Strikes . | . . . . Melee Attacks . | . . . . Impact . | . . . . Slashing . | . . . . Piercing . | . . . . Sneak Attacks . | . . . . Combat Hostiles . | . . . . Follow-up Attacks . | . . . . Damage Inflicted 110 | . 13 95 2 Guns 104 | . 13 91 . Cannons . | . . . . Explosions . | . . . . Melee . | . . . . Ramming 6 | . . 4 2 Kinetic . | . . . . Thermal 104 | . 13 91 . Explosive . | . . . . Electromagnetic . | . . . . Impact . | . . . . Slashing . | . . . . Piercing . | . . . . Highest Corruption 4 | . . 4 1 Average Corruption 3 | . . 4 1 Corruption Purged . | . . . . Corruption Blocked . | . . . . Effects 9 | . . 9 . Message Errors 3 | . . 3 . Matter Fused 1 | . . 1 . Heat Flow Errors 2 | . . 2 . Data Loss (minor) 3 | . . 3 . Overload Shots . | . . . . Overflow Damage . | . . . . Projectiles . | . . . . Explosions . | . . . . Melee . | . . . . Knockbacks . | . . . . Impact . | . . . . Kinetic . | . . . . Secondary . | . . . . Self-Inflicted Damage . | . . . . Shots . | . . . . Rammed 3 | . . . 3 Targets Rammed 4 | . . 1 3 Kicked 1 | . . 1 . Crushed . | . . . . Highest Temperature 239 | . 30 239 . Average Temperature 83 | . 15 91 . Received Heat Transfer 456 | . 168 156 132 Siege Activations . | . . . . Robots Corrupted . | . . . . Combat Hostiles . | . . . . Parts Fried . | . . . . Impact Corruptions . | . . . . Robots Melted . | . . . . Combat Hostiles . | . . . . Parts Melted . | . . . . Heat Transferred 261 | . 37 224 . Parts Sabotaged . | . . . . Parts Stolen . | . . . . Parts Stripped . | . . . . Power Chain Reactions . | . . . . Alert | -11 -10 -10 -9 ------- Run | Yrd Mat Min Mat Peak Influence 30 | . 28 25 30 Initial 10 | . . 10 . Average 12 | . 11 16 10 Maximum Alert Level . | . . . . Low Security (%) 100 | 100 100 100 100 Level 1 . | . . . . Level 2 . | . . . . Level 3 . | . . . . Level 4 . | . . . . Level 5 . | . . . . High Security . | . . . . Max Security . | . . . . Squads Dispatched 4 | . 2 . 2 Investigation 2 | . 1 . 1 Extermination . | . . . . Reinforcement 2 | . 1 . 1 Assault . | . . . . Garrison . | . . . . Intercept . | . . . . Searches Triggered . | . . . . Construction Impeded . | . . . . Haulers Reinforced . | . . . . Active Scanning Responses . | . . . . Cargo Convoy Interrupts . | . . . . Stealth | -11 -10 -10 -9 --------- Run | Yrd Mat Min Mat Distress Signals 2 | . 2 . . Communications Jammed . | . . . . Distress Signals . | . . . . Times Spotted 40 | . 8 18 14 Peak Tracking Total 8 | . 7 8 7 Tactical Retreats . | . . . . Traps | -11 -10 -10 -9 ------- Run | Yrd Mat Min Mat Traps Triggered 1 | . 1 . . Indirectly . | . . . . Trap Hack Attempts . | . . . . Triggered . | . . . . Disarmed . | . . . . Reprogrammed . | . . . . Reused . | . . . . Traps Extracted . | . . . . Installed . | . . . . Triggered . | . . . . Machines | -11 -10 -10 -9 ---------- Run | Yrd Mat Min Mat Machines Disabled . | . . . . Max in Single Turn . | . . . . Machines Repaired . | . . . . Machines Dismantled . | . . . . Machines Sabotaged . | . . . . Overloaded Fab Kills . | . . . . Hacking | -11 -10 -10 -9 --------- Run | Yrd Mat Min Mat Machines Accessed 4 | . 2 . 2 Terminals 4 | . 2 . 2 Fabricators . | . . . . Repair Stations . | . . . . Recycling Units . | . . . . Scanalyzers . | . . . . Garrison Access . | . . . . Total Hacks 9 | . 4 . 5 Successful 5 | . 4 . 1 Failed 4 | . . . 4 Catastrophic 2 | . . . 2 Database Lockouts . | . . . . Manual 7 | . 2 . 5 Terminals 9 | . 4 . 5 Fabricators . | . . . . Repair Stations . | . . . . Recycling Units . | . . . . Scanalyzers . | . . . . Garrison Access . | . . . . Terminal Hacks 3 | . 2 . 1 Record 1 | . 1 . . Zone Layout 2 | . 1 . 1 Fabricator Hacks . | . . . . Repair Station Hacks . | . . . . Recycling Unit Hacks . | . . . . Scanalyzer . | . . . . Garrison Access Hacks . | . . . . Unauthorized Hacks 2 | . 2 . . Terminals 2 | . 2 . . Botnet 2 | . 2 . . Fabricators . | . . . . Repair Stations . | . . . . Recycling Units . | . . . . Scanalyzers . | . . . . Garrison Access . | . . . . Data Cores Recovered . | . . . . Used . | . . . . Hacking Detections 2 | . . . 2 Full Trace Events 1 | . . . 1 Feedback Events . | . . . . Feedback Blocked . | . . . . Robot Schematics Acquired . | . . . . Robots Built . | . . . . Authchips . | . . . . Time . | . . . . Total Robot Build Rating . | . . . . Part Schematics Acquired . | . . . . Parts Built . | . . . . Authchips . | . . . . Time . | . . . . Total Part Build Rating . | . . . . Parts Repaired . | . . . . Time . | . . . . Parts Recycled . | . . . . Recycled Matter . | . . . . Retrieved Matter . | . . . . Retrieved Components . | . . . . Parts Scanalyzed . | . . . . Part Schematics Acquired . | . . . . Parts Damaged . | . . . . Bothacking | -11 -10 -10 -9 ------------ Run | Yrd Mat Min Mat Used RIF Installer . | . . . . Robots Hacked . | . . . . Non-combat . | . . . . Combat . | . . . . Robot Hacks Applied . | . . . . Relay Couplers Released . | . . . . Fabnet Peak Effective % . | . . . . Robots Rewired . | . . . . Allies Hacked . | . . . . Hacks Repelled . | . . . . Allies | -11 -10 -10 -9 -------- Run | Yrd Mat Min Mat Total Allies . | . . . . Largest Group . | . . . . Highest-Rated Group . | . . . . Highest-Rated Ally . | . . . . Total Orders . | . . . . Ally Attacks . | . . . . Total Damage . | . . . . Kills . | . . . . Allies Corrupted . | . . . . Allies Melted . | . . . . Intel | -11 -10 -10 -9 ------- Run | Yrd Mat Min Mat Robot Analysis Total . | . . . . Derelict Logs Recovered . | . . . . Drone Launches . | . . . . Drone Recoveries . | . . . . Exploration | -11 -10 -10 -9 ------------- Run | Yrd Mat Min Mat Turns Passed 832 | 59 159 440 174 Spaces Moved 623 | 42 128 311 142 Core 44 | 5 . . 39 Treads . | . . . . Legs 579 | 37 128 311 103 Wheels . | . . . . Hover . | . . . . Flight . | . . . . Fastest Speed 50 | 50 120 120 50 Average Speed 116 | 111 120 120 106 Slowest Speed 190 | 120 120 190 150 Overloaded Moves . | . . . . Propulsion Burnouts . | . . . . Robots Hopped . | . . . . Cave-ins Triggered . | . . . . Exploration Rate (%) 30 | 3 38 55 25 Regions Visited 3 Branch Regions 1 Pre-discovered Areas . | . . . . Known Exits Taken . | . . . . Unknown Exits Taken 3 | 1 1 1 . Scrap Searched 3 | . . 3 . Spaces Dug . | . . . . Terrain Destroyed . | . . . . Melee . | . . . . Projectile . | . . . . AOE . | . . . . Terrain Rammed . | . . . . Walls Destroyed . | . . . . Machines Disabled . | . . . . Actions | -11 -10 -10 -9 --------- Run | Yrd Mat Min Mat Total 704 | 51 131 361 161 Wait 45 | . 1 34 10 Move 620 | 41 127 310 142 Hop . | . . . . Pick Up 7 | 4 1 2 . Fast Attach 13 | 6 1 2 4 Attach 2 | . . 1 1 Detach . | . . . . Swap 3 | . . 2 1 Drop . | . . . . Fire 10 | . 1 9 . Melee . | . . . . Ram 3 | . . . 3 Kick 1 | . . 1 . Crush . | . . . . Escape Stasis . | . . . . Rewire . | . . . . Trap . | . . . . Miscellaneous . | . . . . Route ------- -11/Scrapyard -10/Materials -10/Mines -9/Materials History --------- Turn | Location | Event 5 | -11/Scrapyard | Discovered new exit (range 15) 60 | -11/Scrapyard | Entered Materials 212 | -10/Materials | Discovered new exit (range 5) 219 | -10/Materials | Entered Mines 220 | -10/Mines | Assembled infested the area 225 | -10/Mines | Assisted by a Guerilla fighting off Assembled 278 | -10/Mines | Found a damaged Exp. Sensor Array with a note attached 296 | -10/Mines | Found Prototype Device 301 | -10/Mines | Build established: Mutant 307 | -10/Mines | Lost 4 parts (1p2n1w) 652 | -10/Mines | Discovered new exit (range 7) 659 | -10/Mines | Entered Materials 659 | -9/Materials | Evolved 2 slots: Propulsion x2 764 | -9/Materials | Lost 3 parts (1p1n1w) 799 | -9/Materials | Released all parts (5) 817 | -9/Materials | Core integrity fell below 50% 833 | -9/Materials | Self-destructed Last Messages --------------- 00741_ U-05 Engineer lays Concrete. 00743_ U-05 Engineer builds a Wall. 00745_ O-16 Technician: "IFF HANDSHAKE FAILED. SECURING TERMINAL." 00747_ U-05 Engineer lays Concrete. 00750_ U-05 Engineer builds a Wall. 00752_ ALERT: Hostiles spotted, dispatching reinforcements to Terminal M002. 00772_ Sml. Laser destroyed. 00776_ Acquired VSS Leg. 00792_ Sml. Storage Unit destroyed. 00792_ System corrupted by crushing effect (+1). 00798_ Knocked back. 00799_ Released VSS Leg. 00799_ Released Flexi-carbon Leg. 00799_ Released Sensor Array. 00799_ Released VSS Leg. 00814_ Acquired Prototype Engine. 00814_ Identified Hvy. Ion Engine. 00817_ Slammed into S-10 Pest. Map ----- +----------------------------------------------------+ | #?????????????????????????? | | #?????????????????????????? | | #?????????????????????????? | | ##+#####????????????????????????? | | !##???????????????????????? | | !#???????????????????????? | | !#???????????????????????? | | # !#???????????????????????? | | # !#???????????????????????? | | # !##???????????????????????? | | # ####????????????????????????? | | #?????????+? ???????????? | | #???????? #? ????????????? | | #???????? #? #????????????? | | #???????" #? #????????????? | | #?????? ## #????????????? | | =! #????##+### #????????????? | | #== ###### #????????????? | | #= +????????????? | | # #????????????? | | # #?????????????? | | # #?????????????? | | # #?????????????? | | # #### #########?????? | | # ###### ##??# ## #?????? | | #??###/##### ## @#?????? | | #??# ! # ## #?????? | | #??# = + ## #?????? | | #####??# # ## #?????? | | ???????######### ##sss #?????? | | ??????????????# ##g#####?????? | | ??????????????# #???????? | | ??????????????# #???????? | | ??????????????# ##/#####?????? | | ??????????????###### #?????? | | ???????????????????#""" #?????? | | ???????????????????#""" #?????? | | ???????????????????#""" #?????? | | ???????????????????# #?????? | | ???????????????????# #?????? | | ???????????????????########?????? | | ????????????????????????????????? | | ????????????????????????????????? | | ????????????????????????????????? | | ????????????????????????????????? | | | | | | | | | | | +----------------------------------------------------+ Best States ------------- Heat Dissipation 28 Energy Generation 14 Energy Capacity 280 Matter Stores 300 Matter Capacity 300 Sight Range 16 Robot Scan Range 14 Terrain Scan Density 10 Evasion (%) 55 Item Schematics ----------------- None Robot Schematics ------------------ None Fabricated ------------ Nothing Alien Tech Used ----------------- None Achievements -------------- I Survived The Infestation True Hacker Challenges ------------ None Game ------ Seed ImpulseAlertAccelerator Manual? 0 Play Time 00:10:34 Cumulative 12.4 hours Start 2024.12.08 @ 22:16:10 End 2024.12.08 @ 22:24:16 Sessions 1 Manual Loads 0 Difficulty Rogue Special Mode None Game No. 31 Rogue 31 Adventurer 0 Explorer 0 Win Type - Total 0 Types 0/0/0/0/0/0/0/0/0 Lore% 10 Gallery% 17 Achievement% 19 Wizard Run 0 Options --------- Layout 1 ASCII 0 Keyboard 0 Movement Numpad Keybinds 0 Fullscreen 0 Font 28/SmallcapsGlow Map View 50x35 Zoom Use 0% Tactical HUD 1 Map Filters NONE Filters NONE Steam X RUN: 909c8311-1f50-44f5-8791-546a8c78d6a9